Cogmind - Beta 12 @@@ ROGUE MODE // 2023.07.13 @ 00:59:23 Player: Zurdo Result: Destroyed by D-53 Grenadier with Mini Grenade Launcher Performance ------------- Evolutions (1) 500 Regions Visited (3) 600 Robots Destroyed (31) 155 Value Destroyed (1076) 1076 Prototype IDs (1) 20 Alien Tech Used (0) 0 Bonus (230) 230 TOTAL SCORE: 2581 Bonus ------- Pacifist 200 High Alert Combat Kills 30 Cogmind --------- Core Integrity 0/400 Matter 494/500 Energy 100/100 System Corruption 13% Temperature Cool (0) Movement Core (400) Ox7 Location -9/Mines Parts ------- > --- POWER (1) -------- (None) > --- PROPULSION (2) --- (None) > --- UTILITY (4) ------ Large Storage Unit High-capacity Matter Pod > --- WEAPON (2) ------- (None) > --- INVENTORY (15) --- Deuterium Engine Deuterium Engine Light Treads Wheel Improved Heat Sink Large Battery (200) Hacking Suite Hacking Suite Assault Rifle Rocket Launcher Heavy Explosive Trap Heavy Explosive Trap Heavy Explosive Trap Peak State ------------ > --- POWER ------------ Deuterium Engine > --- PROPULSION ------- Light Treads Light Treads > --- UTILITY ---------- Improved Heat Sink Cooling System Large Storage Unit Light Armor Plating > --- WEAPON ----------- Improved Assault Rifle Improved Assault Rifle > --- INVENTORY -------- Deuterium Engine Deuterium Engine Deuterium Engine Light Treads Light Treads Light Treads Wheel Large Battery Hacking Suite Hacking Suite Hacking Suite Assault Rifle [Rating: 20] Favorites ----------- Power Deuterium Engine Engine Deuterium Engine Propulsion Light Treads Treads Light Treads Leg Aluminum Leg Utility Large Storage Unit Device Cooling System Storage Large Storage Unit Hackware Hacking Suite Protection Light Armor Plating Weapon Improved Assault Rifle Energy Gun EM Pulse Gun Ballistic Gun Improved Assault Rifle Build | -11 -10 -9 -9 ------- Run | Jun Mat Mat Min Slots Evolved 2 | . . 2 . Power . | . . . . Propulsion . | . . . . Utility 2 | . . 2 . Weapon . | . . . . Parts Attached 36 | 5 1 22 8 Power 3 | 1 . 1 1 Engine 3 | 1 . 1 1 Core . | . . . . Reactor . | . . . . Propulsion 10 | 2 . 6 2 Treads 7 | . . 5 2 Leg 3 | 2 . 1 . Wheel . | . . . . Hover . | . . . . Flight . | . . . . Utility 17 | . 1 11 5 Device 10 | . . 8 2 Storage 3 | . 1 . 2 Processor . | . . . . Hackware 1 | . . 1 . Protection 3 | . . 2 1 Artifact . | . . . . Weapon 6 | 2 . 4 . Energy Gun 1 | 1 . . . Energy Cannon . | . . . . Ballistic Gun 5 | 1 . 4 . Ballistic Cannon . | . . . . Launcher . | . . . . Special Weapon . | . . . . Impact Weapon . | . . . . Slashing Weapon . | . . . . Piercing Weapon . | . . . . Special Melee Weapon . | . . . . Unidentified Prototypes 1 | . . 1 . Parts Lost 16 | . . 4 12 Power 2 | . . . 2 Propulsion 4 | . . . 4 Utility 7 | . . 3 4 Weapon 3 | . . 1 2 Highest Loss Streak 9 | . . 2 9 To Critical Strikes . | . . . . Average Slot Usage (%) 90 | . 74 88 94 Engine 10 | . 14 11 10 Treads 17 | . . 16 21 Leg 4 | . 28 5 . Device 15 | . . 15 17 Storage 12 | . 3 11 15 Hackware 2 | . . . 4 Protection 5 | . . 6 3 Energy Gun 2 | . 14 2 . Ballistic Gun 19 | . 14 19 21 Naked Turns . | . . . . Heaviest Build 44 | 9 29 44 43 Greatest Support 40 | 20 20 40 40 Greatest Overweight (x) 2 | 1 1 2 1 Average Overweight (x) . | . . . . Largest Inventory Capacity 15 | 5 15 15 15 Average Capacity 14 | 5 8 15 15 Most Carried 15 | 3 3 14 15 Average Carried 11 | 1 3 11 13 Final Capacity 15 | 5 15 15 15 Final Carried 13 | 3 3 13 13 Class Distribution -------------------- 91% | Mutant 8% | Scavenger-Mutant Dominant Class ---------------- Mutant | -10/Materials Mutant | -9/Materials Mutant | -9/Mines Resources | -11 -10 -9 -9 ----------- Run | Jun Mat Mat Min Matter Collected 1043 | 251 . 486 306 Remotely . | . . . . Salvage Created 1257 | . . 904 353 Parts 77 | . . 67 10 Haulers Intercepted . | . . . . Recyclers Shooed 1 | . . 1 . Parts Field Recycled . | . . . . Retrieved Matter . | . . . . Parts Self-Destructed . | . . . . Prevented . | . . . . Kills | -11 -10 -9 -9 ------- Run | Jun Mat Mat Min Combat Hostiles Destroyed 29 | . . 20 9 Guns 29 | . . 20 9 Classes Destroyed 6 | . . 4 2 Watcher 2 | . . 2 . Swarmer 4 | . . 3 1 Grunt 16 | . . 10 6 Brawler 1 | . . . 1 Duelist 1 | . . . 1 Sentry 7 | . . 7 . Best Kill Streak 4 | . . 4 4 Combat Bots Only 4 | . . 3 4 Max Kills in Single Turn 1 | . . 1 1 Gunslinging . | . . . . Exploded . | . . . . Melee . | . . . . Uniques/NPCs Destroyed . | . . . . Combat | -11 -10 -9 -9 -------- Run | Jun Mat Mat Min Damage Taken 2131 | . . 901 1230 Core 437 | . . 113 324 Absorbed by Shields 292 | . . 240 52 Core Remaining (%) 100 | 100 100 . . Volleys Fired 97 | 1 . 67 29 Largest 2 | 2 . 2 2 Hottest 63 | 60 . 63 46 Shots Fired 189 | 2 . 126 61 Gun 189 | 2 . 126 61 Cannon . | . . . . Launcher . | . . . . Special . | . . . . Kinetic 174 | 1 . 112 61 Thermal . | . . . . Explosive . | . . . . Electromagnetic 15 | 1 . 14 . Robot Hit Streak 16 | 1 . 9 16 Robot Miss Streak 4 | 1 . 4 2 Penetration Max . | . . . . Secondary Targets 1 | . . . 1 Max Gunslinging Chain 1 | . . . 1 Shots Hit Robots 127 | 1 . 80 46 Core Hits 50 | . . 35 15 Critical Kills . | . . . . Critical Parts Destroyed . | . . . . Critical Strikes . | . . . . Melee Attacks . | . . . . Impact . | . . . . Slashing . | . . . . Piercing . | . . . . Sneak Attacks . | . . . . Combat Hostiles . | . . . . Follow-up Attacks . | . . . . Damage Inflicted 1919 | 23 . 1190 706 Guns 1903 | 14 . 1190 699 Cannons . | . . . . Explosions . | . . . . Melee . | . . . . Ramming 16 | 9 . . 7 Kinetic 1754 | 14 . 1041 699 Thermal . | . . . . Explosive . | . . . . Electromagnetic 149 | . . 149 . Impact . | . . . . Slashing . | . . . . Piercing . | . . . . Highest Corruption 13 | . . . 13 Average Corruption 12 | . . . 12 Corruption Purged . | . . . . Corruption Blocked . | . . . . Effects 23 | . . . 23 Message Errors 5 | . . . 5 Matter Fused 4 | . . . 4 Heat Flow Errors 4 | . . . 4 Energy Discharges 3 | . . . 3 Data Loss (minor) 2 | . . . 2 Data Loss (major) 1 | . . . 1 Misfires 3 | . . . 3 Alerts 1 | . . . 1 Overload Shots . | . . . . Overflow Damage . | . . . . Projectiles . | . . . . Explosions . | . . . . Melee . | . . . . Knockbacks 1 | 1 . . . Impact 1 | 1 . . . Kinetic . | . . . . Secondary . | . . . . Self-Inflicted Damage . | . . . . Shots . | . . . . Rammed 1 | . . . 1 Targets Rammed 2 | 1 . . 1 Kicked 1 | 1 . . . Crushed . | . . . . Highest Temperature 240 | . . 18 240 Average Temperature 31 | . . 6 106 Received Heat Transfer 494 | . . 428 66 Siege Activations . | . . . . Robots Corrupted . | . . . . Combat Hostiles . | . . . . Parts Fried . | . . . . Impact Corruptions . | . . . . Robots Melted . | . . . . Combat Hostiles . | . . . . Parts Melted . | . . . . Heat Transferred . | . . . . Parts Sabotaged . | . . . . Parts Stolen . | . . . . Parts Stripped . | . . . . Power Chain Reactions . | . . . . Missiles Intercepted . | . . . . Alert | -11 -10 -9 -9 ------- Run | Jun Mat Mat Min Peak Influence 444 | . 11 444 274 Initial 94 | . . 4 94 Average 159 | . 10 221 105 Maximum Alert Level 2 | . . 2 1 Low Security (%) 59 | 100 100 36 83 Level 1 37 | . . 59 16 Level 2 2 | . . 3 . Level 3 . | . . . . Level 4 . | . . . . Level 5 . | . . . . High Security . | . . . . Max Security . | . . . . Squads Dispatched 4 | . . 4 . Investigation 1 | . . 1 . Extermination . | . . . . Reinforcement 3 | . . 3 . Assault . | . . . . Garrison . | . . . . Intercept . | . . . . Searches Triggered . | . . . . Construction Impeded . | . . . . Haulers Reinforced . | . . . . Active Scanning Responses . | . . . . Cargo Convoy Interrupts . | . . . . Stealth | -11 -10 -9 -9 --------- Run | Jun Mat Mat Min Distress Signals 2 | . . 2 . Communications Jammed . | . . . . Distress Signals . | . . . . Times Spotted 41 | . . 29 12 Peak Tracking Total 5 | . . 5 4 Tactical Retreats 4 | . . 4 . Traps | -11 -10 -9 -9 ------- Run | Jun Mat Mat Min Traps Triggered 1 | . . 1 . Indirectly . | . . . . Trap Hack Attempts . | . . . . Triggered . | . . . . Disarmed . | . . . . Reprogrammed . | . . . . Reused . | . . . . Traps Extracted . | . . . . Installed . | . . . . Triggered 1 | . . . 1 Most Traps Carried 3 | . . . 3 Machines | -11 -10 -9 -9 ---------- Run | Jun Mat Mat Min Machines Disabled 1 | . . 1 . Max in Single Turn 1 | . . 1 . Machines Repaired . | . . . . Machines Sabotaged . | . . . . Overloaded Fab Kills . | . . . . Hacking | -11 -10 -9 -9 --------- Run | Jun Mat Mat Min Machines Accessed 6 | . 1 5 . Terminals 5 | . 1 4 . Fabricators . | . . . . Repair Stations . | . . . . Recycling Units 1 | . . 1 . Scanalyzers . | . . . . Garrison Access . | . . . . Total Hacks 13 | . 3 10 . Successful 5 | . 2 3 . Failed 8 | . 1 7 . Catastrophic 6 | . 1 5 . Database Lockouts . | . . . . Manual 9 | . 2 7 . Terminals 12 | . 3 9 . Fabricators . | . . . . Repair Stations . | . . . . Recycling Units 1 | . . 1 . Scanalyzers . | . . . . Garrison Access . | . . . . Terminal Hacks 4 | . 2 2 . Record 1 | . 1 . . Level Access Points 2 | . 1 1 . Branch Access Points 1 | . . 1 . Fabricator Hacks . | . . . . Repair Station Hacks . | . . . . Recycling Unit Hacks 1 | . . 1 . Retrieve Components 1 | . . 1 . Scanalyzer . | . . . . Garrison Access Hacks . | . . . . Unauthorized Hacks . | . . . . Terminals . | . . . . Fabricators . | . . . . Repair Stations . | . . . . Recycling Units . | . . . . Scanalyzers . | . . . . Garrison Access . | . . . . Data Cores Recovered . | . . . . Used . | . . . . Hacking Detections 4 | . 1 3 . Full Trace Events . | . . . . Feedback Events . | . . . . Feedback Blocked . | . . . . Robot Schematics Acquired . | . . . . Robots Built . | . . . . Authchips . | . . . . Time . | . . . . Total Robot Build Rating . | . . . . Part Schematics Acquired . | . . . . Parts Built . | . . . . Authchips . | . . . . Time . | . . . . Total Part Build Rating . | . . . . Parts Repaired . | . . . . Time . | . . . . Parts Recycled . | . . . . Recycled Matter . | . . . . Retrieved Matter . | . . . . Retrieved Components 9 | . . 9 . Parts Scanalyzed . | . . . . Part Schematics Acquired . | . . . . Parts Damaged . | . . . . Bothacking | -11 -10 -9 -9 ------------ Run | Jun Mat Mat Min Used RIF Installer . | . . . . Robots Hacked . | . . . . Non-combat . | . . . . Combat . | . . . . Robot Hacks Applied . | . . . . Relay Couplers Released . | . . . . Fabnet Peak Effective % . | . . . . Robots Rewired . | . . . . Allies Hacked . | . . . . Hacks Repelled . | . . . . Allies | -11 -10 -9 -9 -------- Run | Jun Mat Mat Min Total Allies . | . . . . Largest Group . | . . . . Highest-Rated Group . | . . . . Highest-Rated Ally . | . . . . Total Orders . | . . . . Ally Attacks . | . . . . Total Damage . | . . . . Kills . | . . . . Allies Corrupted . | . . . . Allies Melted . | . . . . Intel | -11 -10 -9 -9 ------- Run | Jun Mat Mat Min Robot Analysis Total . | . . . . Derelict Logs Recovered 1 | . . . 1 Drone Launches . | . . . . Drone Recoveries . | . . . . Exploration | -11 -10 -9 -9 ------------- Run | Jun Mat Mat Min Turns Passed 2436 | 56 119 1287 974 Spaces Moved 1104 | 37 88 515 464 Core 6 | 6 . . . Treads 855 | . . 391 464 Legs 243 | 31 88 124 . Wheels . | . . . . Hover . | . . . . Flight . | . . . . Fastest Speed 50 | 50 120 160 160 Average Speed 183 | 112 135 193 187 Slowest Speed 260 | 120 190 260 240 Overloaded Moves . | . . . . Propulsion Burnouts . | . . . . Robots Hopped . | . . . . Cave-ins Triggered . | . . . . Exploration Rate (%) 38 | 3 18 48 84 Regions Visited 3 Branch Regions 1 Pre-discovered Areas . | . . . . Known Exits Taken 2 | . 1 1 . Unknown Exits Taken 1 | 1 . . . Scrap Searched 1 | . . . 1 Spaces Dug . | . . . . Terrain Destroyed . | . . . . Melee . | . . . . Projectile . | . . . . AOE . | . . . . Terrain Rammed . | . . . . Walls Destroyed . | . . . . Machines Disabled . | . . . . Actions | -11 -10 -9 -9 --------- Run | Jun Mat Mat Min Total 1321 | 46 88 678 509 Wait 55 | . . 55 . Move 1101 | 36 87 514 464 Hop . | . . . . Pick Up 17 | 3 . 10 4 Fast Attach 19 | 5 1 9 4 Attach 9 | . . 5 4 Detach 2 | . . 1 1 Swap 8 | . . 8 . Drop 11 | . . 9 2 Fire 97 | 1 . 67 29 Melee . | . . . . Ram . | . . . . Kick 1 | 1 . . . Crush 1 | . . . 1 Escape Stasis . | . . . . Rewire . | . . . . Trap . | . . . . Miscellaneous . | . . . . Route ------- -11/Junkyard -10/Materials (discovered 3 exits: *Mat x3) -9/Materials (discovered 4 exits: *Mat x3 / *Min) -9/Mines (discovered 2 exits: *Mat / [*Zio]) History --------- Turn | Location | Event 7 | -11/Junkyard | Discovered new exit (range 15) 57 | -11/Junkyard | Entered Materials 65 | -10/Materials | Identified exit to Materials 176 | -10/Materials | Entered another Materials area 176 | -9/Materials | Evolved 2 slots: Utility x2 314 | -9/Materials | Build established: Mutant 1045 | -9/Materials | Discovered new exit (range 16) 1411 | -9/Materials | Identified exit to Materials 1411 | -9/Materials | Identified exit to Mines 1463 | -9/Materials | Entered Mines 1507 | -9/Mines | Assisted by bots powering up and referring to "LRC-V3" 1552 | -9/Mines | A Derelict revealed a hidden shortcut to a safe place 1602 | -9/Mines | Received a Rocket Launcher from a helpful Derelict 1838 | -9/Mines | System corruption reached 10% 1868 | -9/Mines | Lost 3 parts (1p2u) 1904 | -9/Mines | Discovered exit to Materials (range 9) 2103 | -9/Mines | Learned location of 1 exit from Materials 2118 | -9/Mines | Found a hidden stash of uninstalled traps 2379 | -9/Mines | Assembled infested the area 2401 | -9/Mines | Core integrity fell below 50% 2423 | -9/Mines | Core integrity fell below 20% 2424 | -9/Mines | Met 8R-AWN 2437 | -9/Mines | Destroyed by D-53 Grenadier with Mini Grenade Launcher Last Messages --------------- 02422_ as-25312 destroyed. 02422_ as-94238 destroyed. 02422_ K-01 Serf destroyed. 8R-AWN: Hm, I'm not getting any readings that show these Assembled are different than what we have already... But you... you look interesting. Maybe they'll want to see you. Come along little bot, it's safer with us than out here, anyway. 02425_ The unstable cave ceiling collapses. 02426_ Lgt. Treads destroyed. 02429_ The unstable cave ceiling collapses. 02429_ U-05 Engineer builds a Wall. 02430_ The unstable cave ceiling collapses. 02433_ HV Slug penetrates D-53 Grenadier. 02433_ D-53 Grenadier suffers critical hit (Destroy). 02434_ OQEKPTRAQZ8TCPH86EJ%WMT GEKXGY 02435_ Acquired 4 matter. 02435_ HV Slug penetrates D-53 Grenadier. 02435_ D-53 Grenadier suffers critical hit (Destroy). 02436_ The unstable cave ceiling collapses. 02437_ Lgt. Treads destroyed. Map ----- +----------------------------------------------------+ | ?????### ##?##%# # #???????????? | | ????### ####*# # #??????????? | | ????## # # #???????? | | ????## #### # ### #???????? | | ?????## ##?## #########?## ##???????? | | ?????# ## # ##### ########????#####????????? | | ????## # ####?????????????????????? | | ????# # # ##????????????????????? | | ????# # ## ######???????????????? | | ????# #???????????????? | | ????# # #???????????????? | | ????## # # #???????????????? | | ???### ### #???????????????? | | ???# # #######???????????????? | | ???# ## #????????????????????? | | ???#??###### d # ###??????????????????? | | ???????????## d #??????????????????? | | ???????????## ! ###?????????????#### | | ???????????# ##???????????## | | ???????????# #???????????# | | ???????????# #??????????## | | ???????????# ##?????????## | | ???????????# ##??????????# | | ????????????# g ##??????????# | | ????????????## #####????????# | | ????????????# @ %!= # | | ????????????# = ![= ### | | ????????????# ### ######### ### #??## | | ????????????# ??####???????????# #????# | | ????????????# ??????????????????## #?????? | | ????????????% ???????????????????# ??????? | | ??????????? ????????????????????# ???????? | | ??????????% ????????????????????? ????????? | | ????????? ?????????????????????##?????????? | | ???????????????????????????????????????????? | | ???????????????????????????????????????????? | | ???????????????????????????????????????????? | | ???????????????????????????????????????????? | | ???????????????????????????????????????????? | | ???????????????????????????????????????????? | | ???????????????????????????????????????????? | | ???????????????????????????????????????????? | | ???????????????????????????????????????????? | | | | | | | | | | | | | | | +----------------------------------------------------+ Best States ------------- Heat Dissipation 64 Energy Generation 14 Energy Capacity 275 Matter Stores 500 Matter Capacity 500 Sight Range 16 Terrain Scan Density 10 Armor Coverage 150 Evasion (%) 55 Recoil Reduction 2 Offensive Hacking 10 Item Schematics ----------------- None Robot Schematics ------------------ None Fabricated ------------ Nothing Alien Tech Used ----------------- None Achievements -------------- None Challenges ------------ None Game ------ Seed ThrowingCommSuite Manual? 0 Play Time 00:25:01 Cumulative 11.6 hours Start 2023.07.13 @ 00:25:42 End 2023.07.13 @ 00:59:23 Sessions 1 Manual Loads 0 Difficulty Rogue Special Mode None Game No. 11 Rogue 9 Adventurer 2 Explorer 0 Win Type - Total 0 Types 0/0/0/0/0/0/0/0/0 Lore% 12 Gallery% 18 Achievement% 15 Wizard Run 0 Options --------- ASCII 0 Keyboard 0 Movement Mouse Keybinds 0 Fullscreen 1 Font 18/SmallcapsGlow Map View 76x50 Tactical HUD 1 Map Filters NONE Filters NONE Steam 1 RUN: 9f6b8c5b-e992-4a35-a0fb-4cf1eed6223b